Cogmind - Beta 10.2 @@@ ROGUE MODE // 2020.12.19 @ 03:15:54 // Halloween2020/ForbiddenLore Player: Joking_Phantom Result: Destroyed by Enhanced Grunt with Neutron Cannon Performance ------------- Evolutions (3) 1500 Regions Visited (11) 2200 Robots Destroyed (196) 980 Value Destroyed (5607) 5607 Prototype IDs (217) 4340 Alien Tech Used (0) 0 Bonus (3542) 3542 TOTAL SCORE: 18169 Bonus ------- High Alert Combat Kills 365 Follower Combat Kills 109 Met Data Miner 300 Used Data Conduit 3000 Friendly Fire -232 Cogmind --------- Core Integrity 0/700 Matter 217/300 Energy 176/290 System Corruption 18% Temperature Cool (4) Movement Rolling (190) Ox9 Location -7/Data Miner Parts ------- > --- POWER (1) -------- Improved Deuterium Engine > --- PROPULSION (2) --- Armored Treads Compact Wheel > --- UTILITY (6) ------ High-capacity Storage Unit High-capacity Storage Unit High-capacity Storage Unit High-capacity Storage Unit Improved Medium Armor Plating Improved Shield Generator > --- WEAPON (4) ------- Power Maul > --- INVENTORY (36) --- Deuterium Engine Improved Deuterium Engine Enhanced Nuclear Core Medium Treads Long-range Sensor Array Advanced Terrain Scanner Makeshift Terrain Scan Processor Advanced Targeting Computer Advanced Targeting Computer Improved Utility Shielding Heavy Armor Plating Reactive Plating Reactive Plating Medium Reactive Plating Damper Plating Long-range Tractor Beam Shock Rifle Shock Rifle Flak Gun Flak Gun Flak Gun Proton Missile Launcher Proton Missile Launcher Heavy Rocket Launcher Long-range Missile Launcher Improved Datajack Great Maul Powered Hammer Greatsword Peak State ------------ > --- POWER ------------ Improved Deuterium Engine > --- PROPULSION ------- Armored Treads Medium Treads > --- UTILITY ---------- High-capacity Storage Unit High-capacity Storage Unit High-capacity Storage Unit High-capacity Storage Unit Long-range Sensor Array Advanced Signal Interpreter > --- WEAPON ----------- Flak Gun Flak Gun Flak Gun Flak Gun > --- INVENTORY -------- Deuterium Engine Improved Deuterium Engine Enhanced Nuclear Core Compact Wheel Advanced Terrain Scanner Makeshift Terrain Scan Processor Advanced Targeting Computer Advanced Targeting Computer Improved Utility Shielding Heavy Armor Plating Improved Medium Armor Plating Reactive Plating Reactive Plating Medium Reactive Plating Damper Plating Improved Shield Generator System Backup Module Long-range Tractor Beam Shock Rifle Shock Rifle Flak Gun Flak Gun Proton Missile Launcher Proton Missile Launcher Heavy Rocket Launcher Long-range Missile Launcher Improved Datajack Great Maul Powered Hammer Power Maul Greatsword [Rating: 51] Favorites ----------- Power Improved Deuterium Engine Engine Improved Deuterium Engine Power Core Enhanced Nuclear Core Propulsion Compact Wheel Treads Light Treads Leg Aluminum Leg Wheel Compact Wheel Utility High-capacity Storage Unit Device Long-range Sensor Array Storage High-capacity Storage Unit Processor Advanced Signal Interpreter Protection Medium Armor Plating Weapon Flak Gun Energy Gun Shock Rifle Energy Cannon Advanced Beam Cannon Ballistic Gun Flak Gun Launcher Improved Grenade Launcher Impact Weapon Great Maul Slashing Weapon Makeshift Axe Special Melee Weapon Improved Datajack Build | -11 -10 -10 -9 -9 -8 -7 -7 -7 -7 -7 -7 ------- Run | Scr Mat Min Mat Min Mat Fac Was Fac Low Low Dat Slots Evolved 6 | . . . 2 . 2 2 . . . . . Power . | . . . . . . . . . . . . Propulsion . | . . . . . . . . . . . . Utility 4 | . . . 2 . 2 . . . . . . Weapon 2 | . . . . . . 2 . . . . . Parts Attached 282 | 1 22 17 52 23 47 73 4 21 7 7 8 Power 14 | . 2 . 4 3 2 2 . 1 . . . Engine 13 | . 2 . 4 3 2 1 . 1 . . . Core 1 | . . . . . . 1 . . . . . Reactor . | . . . . . . . . . . . . Propulsion 111 | . 13 12 16 15 13 24 2 11 2 2 1 Treads 58 | . 6 6 10 7 7 14 . 5 2 . 1 Leg . | . . . . . . . . . . . . Wheel 53 | . 7 6 6 8 6 10 2 6 . 2 . Hover . | . . . . . . . . . . . . Flight . | . . . . . . . . . . . . Utility 76 | 1 4 . 17 . 18 15 2 7 4 5 3 Device 23 | . . . . . 3 6 1 5 2 4 2 Storage 22 | 1 4 . 6 . 7 3 . . . 1 . Processor 2 | . . . . . . 1 . 1 . . . Hackware . | . . . . . . . . . . . . Protection 29 | . . . 11 . 8 5 1 1 2 . 1 Artifact . | . . . . . . . . . . . . Weapon 81 | . 3 5 15 5 14 32 . 2 1 . 4 Energy Gun 21 | . 1 3 3 1 5 7 . . . . 1 Energy Cannon 6 | . . . 4 1 1 . . . . . . Ballistic Gun 34 | . 1 1 5 1 4 18 . 2 1 . 1 Ballistic Cannon . | . . . . . . . . . . . . Launcher 10 | . 1 1 1 2 1 4 . . . . . Special Weapon . | . . . . . . . . . . . . Impact Weapon 3 | . . . . . 1 1 . . . . 1 Slashing Weapon 3 | . . . 1 . 1 . . . . . 1 Piercing Weapon . | . . . . . . . . . . . . Special Melee Weapon 4 | . . . 1 . 1 2 . . . . . Unidentified Prototypes 5 | . . . 3 . 1 1 . . . . . Parts Lost 34 | . 2 . 10 3 . 11 . . 2 . 6 Power 3 | . 1 . 2 . . . . . . . . Propulsion 7 | . . . 1 1 . 3 . . 1 . 1 Utility 7 | . . . 4 . . 1 . . . . 2 Weapon 17 | . 1 . 3 2 . 7 . . 1 . 3 Highest Loss Streak 6 | . 2 . 4 2 . 5 . . 2 . 6 Average Slot Usage (%) 98 | . 99 100 95 99 98 98 100 99 100 100 96 Engine 8 | . 13 14 9 11 9 5 7 7 7 7 7 Treads 9 | . 5 2 18 9 9 7 5 10 14 7 . Wheel 8 | . 19 25 3 12 8 7 9 4 . 6 14 Device 3 | . . . . . . 4 7 6 6 7 6 Storage 32 | . 28 28 25 44 37 34 30 30 30 30 30 Processor 2 | . . . . . . 1 . . 7 7 6 Protection 5 | . . . 16 . 15 4 6 6 . . . Energy Gun 3 | . 2 15 1 3 6 4 . . . . . Energy Cannon 1 | . . . 3 10 2 . . . . . . Ballistic Gun 19 | . 25 12 14 7 7 22 30 29 30 30 24 Naked Turns . | . . . . . . . . . . . . Heaviest Build 218 | 14 70 71 138 140 182 218 186 177 174 156 156 Greatest Support 48 | 20 40 40 40 40 40 48 48 48 48 48 26 Greatest Overweight (x) 9 | . 2 2 3 4 5 6 4 8 4 9 9 Average Overweight (x) 3 | . . 1 2 3 3 4 3 3 3 8 5 Largest Inventory Capacity 52 | 8 20 20 36 36 44 52 44 36 36 36 36 Average Capacity 32 | 6 14 20 22 36 36 39 36 36 36 36 36 Most Carried 52 | 8 18 20 36 36 44 52 44 36 36 36 36 Average Carried 31 | 6 12 19 20 35 35 37 36 35 34 36 35 Final Capacity 44 | 8 20 20 36 36 44 44 36 36 36 36 36 Final Carried 44 | 8 18 20 36 36 44 44 36 35 36 36 33 Class Distribution -------------------- 44% | Hauler-Mutant 29% | Hauler-Skirmisher 9% | Hauler-Tank 7% | Hauler-Gunner 4% | Mutant 3% | Scavenger-Mutant Dominant Class ---------------- Mutant | -10/Materials Hauler-Mutant | -10/Mines Hauler-Mutant | -9/Materials Hauler-Mutant | -9/Mines Hauler-Mutant | -8/Materials Hauler-Gunner | -7/Factory Hauler-Tank | -7/Waste Hauler-Tank | -7/Factory Hauler-Skirmisher | -7/Lower Caves Hauler-Skirmisher | -7/Lower Caves Hauler-Mutant | -7/Data Miner Resources | -11 -10 -10 -9 -9 -8 -7 -7 -7 -7 -7 -7 ----------- Run | Scr Mat Min Mat Min Mat Fac Was Fac Low Low Dat Matter Collected 6670 | 218 519 376 990 326 660 1955 175 703 464 284 . Remotely . | . . . . . . . . . . . . Salvage Created 8748 | 59 569 354 1254 1107 1279 2478 213 841 402 192 . Parts 459 | 4 34 20 81 61 65 121 3 53 4 13 . Haulers Intercepted 13 | . 1 . 3 . 6 3 . . . . . Recyclers Shooed 6 | . . 2 . 1 . 1 . 2 . . . Parts Field Recycled . | . . . . . . . . . . . . Retrieved Matter . | . . . . . . . . . . . . Parts Self-Destructed 16 | . . . . . . . . . 3 13 . Prevented . | . . . . . . . . . . . . Kills | -11 -10 -10 -9 -9 -8 -7 -7 -7 -7 -7 -7 ------- Run | Scr Mat Min Mat Min Mat Fac Was Fac Low Low Dat Combat Hostiles Destroyed 128 | . 13 9 26 17 15 37 1 5 1 4 . Melee 4 | . . . 2 . 1 . . 1 . . . Guns 86 | . 12 6 17 7 9 25 1 4 1 4 . Cannons 16 | . . . 6 7 3 . . . . . . AOE 21 | . 1 3 1 3 2 11 . . . . . Classes Destroyed 17 | 1 2 3 3 1 2 3 1 . 1 . . Worker 14 | . . 1 2 4 2 1 . 4 . . . Builder 9 | . . . 2 2 . 3 . 2 . . . Tunneler 6 | . . 1 . 5 . . . . . . . Hauler 13 | . 1 . 3 . 6 3 . . . . . Recycler 19 | 1 . 1 . 4 . 5 . 8 . . . Operator 1 | . . . . . 1 . . . . . . Watcher 7 | . . . 2 . 3 2 . . . . . Swarmer 16 | . . 3 4 3 . 6 . . . . . Grunt 80 | . 13 6 16 13 8 19 . 2 . 3 . Brawler 2 | . . . . 1 1 . . . . . . Sentry 15 | . . . 6 . 5 3 . 1 . . . Demolisher 2 | . . . . . . 2 . . . . . Hunter 4 | . . . . . 2 1 . 1 . . . Programmer 6 | . . . . . . 4 . 1 . 1 . Behemoth 1 | . . . . . . . . . 1 . . Compactor 1 | . . . . . . . 1 . . . . Decomposer 1 | . . . . . . . . . 1 . . Packrat 4 | . . . . . . . . . 4 . . Assembled 2 | . . . . . . 2 . . . . . Best Kill Streak 15 | 1 3 3 10 11 3 15 1 7 1 3 . Combat Bots Only 8 | . 3 3 8 7 3 7 1 2 1 3 . Max Kills in Single Turn 5 | 1 1 2 2 5 2 3 1 2 1 1 . Gunslinging 1 | . . . . . . 1 . . . . . Exploded 3 | . 1 2 1 3 2 3 . . . . . Melee 1 | . . . 1 . 1 . . 1 . . . Uniques/NPCs Destroyed . | . . . . . . . . . . . . Combat | -11 -10 -10 -9 -9 -8 -7 -7 -7 -7 -7 -7 -------- Run | Scr Mat Min Mat Min Mat Fac Was Fac Low Low Dat Damage Taken 8298 | . 441 315 1413 462 683 2882 . 410 354 130 1208 Core 1150 | . 84 88 102 125 49 432 . 9 . . 261 Absorbed by Shields 306 | . . . . . 15 116 . 150 . . 25 Core Remaining (%) 66 | 100 . 31 . 43 91 . . . . . . Volleys Fired 445 | 2 48 28 91 64 69 77 13 21 14 6 12 Largest 4 | 2 2 2 2 2 2 4 4 4 4 4 1 Hottest 173 | 40 60 85 91 118 100 173 102 102 112 112 50 Shots Fired 1060 | 4 93 54 164 127 133 259 50 83 55 26 12 Gun 925 | 4 91 52 131 62 113 246 50 83 55 26 12 Cannon 113 | . . . 31 63 19 . . . . . . Launcher 22 | . 2 2 2 2 1 13 . . . . . Special . | . . . . . . . . . . . . Kinetic 749 | 4 84 26 112 27 67 215 50 83 55 26 . Thermal 165 | . 7 26 50 63 19 . . . . . . Explosive 13 | . 2 2 2 2 1 4 . . . . . Electromagnetic 133 | . . . . 35 46 40 . . . . 12 Robot Hit Streak 20 | 3 13 12 20 11 12 18 8 8 11 7 . Robot Miss Streak 9 | . 2 2 3 3 4 7 9 8 7 5 . Penetration Max . | . . . . . . . . . . . . Secondary Targets 10 | . . . 2 . . 8 . . . . . Max Gunslinging Chain 1 | . . . 1 . . 1 . . . . . Shots Hit Robots 704 | 3 61 39 125 64 85 164 43 51 44 24 1 Core Hits 416 | 2 32 23 60 39 42 97 22 42 35 22 . Critical Hits 7 | . 1 . . 2 2 2 . . . . . Critical Kills 5 | . 1 . . 1 2 1 . . . . . Critical Parts Destroyed 2 | . . . . 1 . 1 . . . . . Melee Attacks 26 | . . . 8 . 6 2 . . . . 10 Impact 11 | . . . . . . 2 . . . . 9 Slashing 15 | . . . 8 . 6 . . . . . 1 Piercing . | . . . . . . . . . . . . Sneak Attacks 1 | . . . . . . . . . . . 1 Combat Hostiles . | . . . . . . . . . . . . Follow-up Attacks . | . . . . . . . . . . . . Damage Inflicted 14105 | 27 773 605 1984 1353 1792 4010 1044 1106 889 375 147 Guns 9326 | 27 626 445 1159 595 1105 2357 1044 704 889 375 . Cannons 1367 | . . . 467 575 325 . . . . . . Explosions 2962 | . 147 160 158 183 289 1653 . 372 . . . Melee 420 | . . . 200 . 73 . . . . . 147 Ramming 30 | . . . . . . . . 30 . . . Kinetic 7532 | 27 595 183 865 284 574 1992 1044 704 889 375 . Thermal 2378 | . 31 262 761 575 448 301 . . . . . Explosive 1673 | . 147 160 158 183 166 487 . 372 . . . Electromagnetic 2072 | . . . . 311 531 1230 . . . . . Impact . | . . . . . . . . . . . . Slashing 420 | . . . 200 . 73 . . . . . 147 Piercing . | . . . . . . . . . . . . Highest Corruption 18 | . . . . . 5 2 12 12 12 14 18 Average Corruption 9 | . . . . . 4 1 8 12 12 12 14 Corruption Purged 2 | . . . . . . 1 . . . . 1 Effects 279 | . . . . . 30 10 7 38 97 82 15 Message Errors 48 | . . . . . 6 1 . 3 13 21 4 Matter Fused 46 | . . . . . 8 . . 6 17 12 3 Heat Flow Errors 22 | . . . . . 4 2 1 4 7 2 2 Energy Discharges 38 | . . . . . 3 4 . 5 13 12 1 Parts Rejected 3 | . . . . . 1 . . 1 1 . . Data Loss (minor) 30 | . . . . . 2 3 . 2 13 10 . Data Loss (major) 13 | . . . . . . . 1 2 6 4 . Misfires 6 | . . . . . 2 . . . 2 2 . Alerts 5 | . . . . . . . 1 1 1 2 . Misdirections 35 | . . . . . . . 1 4 13 14 3 Targeting Errors 26 | . . . . . 3 . 1 9 8 3 2 Weapon Failures 7 | . . . . . 1 . 2 1 3 . . Overload Shots . | . . . . . . . . . . . . Overflow Damage 150 | . 7 3 3 20 . 90 . . . . 27 Projectiles . | . . . . . . . . . . . . Explosions 120 | . 7 3 . 20 . 90 . . . . . Melee 30 | . . . 3 . . . . . . . 27 Knockbacks . | . . . . . . . . . . . . Impact . | . . . . . . . . . . . . Kinetic . | . . . . . . . . . . . . Secondary . | . . . . . . . . . . . . Self-Inflicted Damage 283 | . . 54 . 30 29 57 . 113 . . . Shots 7 | . . 2 . 1 1 2 . 1 . . . Rammed 4 | . . . . . . . . 4 . . . Targets Rammed 5 | . . . . . . . . 5 . . . Kicked . | . . . . . . . . . . . . Crushed 1 | . . . . . . . . 1 . . . Highest Temperature 342 | . 12 112 276 267 267 269 273 342 237 163 172 Average Temperature 76 | . 6 31 83 73 81 67 109 106 86 51 93 Received Heat Transfer 2236 | . 240 132 549 195 234 564 . 134 36 18 134 Effects 3 | . . . 3 . . . . . . . . Energy Bleed 1 | . . . 1 . . . . . . . . Interference 2 | . . . 2 . . . . . . . . Siege Activations . | . . . . . . . . . . . . Robots Corrupted 4 | . . . . . 3 1 . . . . . Combat Hostiles 1 | . . . . . . 1 . . . . . Parts Fried 13 | . . . . . 8 5 . . . . . Impact Corruptions . | . . . . . . . . . . . . Robots Melted . | . . . . . . . . . . . . Combat Hostiles . | . . . . . . . . . . . . Parts Melted 5 | . . . 3 . 2 . . . . . . Heat Transferred 4340 | . 75 596 1591 1036 692 350 . . . . . Parts Sabotaged . | . . . . . . . . . . . . Parts Stolen . | . . . . . . . . . . . . Parts Stripped . | . . . . . . . . . . . . Power Chain Reactions 5 | . . . . . 2 3 . . . . . Missiles Intercepted . | . . . . . . . . . . . . Alert | -11 -10 -10 -9 -9 -8 -7 -7 -7 -7 -7 -7 ------- Run | Scr Mat Min Mat Min Mat Fac Was Fac Low Low Dat Peak Influence 677 | 5 203 322 425 381 487 677 250 657 . . . Initial 235 | . 3 67 . 161 83 182 235 175 . . . Average 284 | 4 84 132 181 256 301 483 243 417 . . . Maximum Alert Level 2 | . 1 1 2 1 2 2 1 2 . . . Low Security (%) 35 | 100 99 88 57 10 11 13 . 32 . . . Level 1 43 | . . 11 36 89 73 18 100 16 . . . Level 2 21 | . . . 5 . 15 68 . 50 . . . Level 3 . | . . . . . . . . . . . . Level 4 . | . . . . . . . . . . . . Level 5 . | . . . . . . . . . . . . High Security . | . . . . . . . . . . . . Max Security . | . . . . . . . . . . . . Squads Dispatched 29 | . 5 . 3 . 4 14 . 3 . . . Investigation 7 | . 3 . 1 . 1 1 . 1 . . . Extermination 4 | . . . . . . 3 . 1 . . . Reinforcement 13 | . 2 . 2 . 2 6 . 1 . . . Assault . | . . . . . . . . . . . . Garrison 5 | . . . . . 1 4 . . . . . Intercept . | . . . . . . . . . . . . Construction Impeded 2 | . . . . . . 2 . . . . . Haulers Reinforced 2 | . . . . . . 2 . . . . . Stealth | -11 -10 -10 -9 -9 -8 -7 -7 -7 -7 -7 -7 --------- Run | Scr Mat Min Mat Min Mat Fac Was Fac Low Low Dat Distress Signals 12 | . . . 2 2 3 3 . 2 . . . Communications Jammed . | . . . . . . . . . . . . Distress Signals . | . . . . . . . . . . . . Times Spotted 204 | . 17 10 41 20 38 55 6 9 1 4 3 Peak Tracking Total 8 | . 3 3 6 3 4 8 4 4 1 3 3 Tactical Retreats 7 | . . 1 1 1 1 2 1 . . . . Traps | -11 -10 -10 -9 -9 -8 -7 -7 -7 -7 -7 -7 ------- Run | Scr Mat Min Mat Min Mat Fac Was Fac Low Low Dat Traps Triggered 11 | . 1 . 7 . 1 2 . . . . . Indirectly . | . . . . . . . . . . . . Trap Hack Attempts 52 | . . . . . 11 41 . . . . . Triggered . | . . . . . . . . . . . . Disarmed 4 | . . . . . . 4 . . . . . Reprogrammed 3 | . . . . . 1 2 . . . . . Reused 1 | . . . . . 1 . . . . . . Traps Extracted . | . . . . . . . . . . . . Installed . | . . . . . . . . . . . . Triggered 3 | . . . . . 3 . . . . . . Machines | -11 -10 -10 -9 -9 -8 -7 -7 -7 -7 -7 -7 ---------- Run | Scr Mat Min Mat Min Mat Fac Was Fac Low Low Dat Machines Disabled 15 | . . . 2 1 1 3 . 8 . . . Max in Single Turn 2 | . . . 2 1 1 1 . 1 . . . Garrison Access 1 | . . . . . . . . 1 . . . Machines Sabotaged . | . . . . . . . . . . . . Garrisons Compromised 1 | . . . . . . 1 . . . . . Overloaded Fab Kills . | . . . . . . . . . . . . Fab Network Shutdowns . | . . . . . . . . . . . . Hacking | -11 -10 -10 -9 -9 -8 -7 -7 -7 -7 -7 -7 --------- Run | Scr Mat Min Mat Min Mat Fac Was Fac Low Low Dat Machines Accessed 31 | . 4 . 5 2 9 4 . 3 . . 4 Terminals 14 | . 2 . 2 1 6 2 . 1 . . . Fabricators . | . . . . . . . . . . . . Repair Stations 3 | . 1 . 1 . 1 . . . . . . Recycling Units 6 | . 1 . 1 . 1 2 . 1 . . . Scanalyzers 2 | . . . 1 . 1 . . . . . . Garrison Access 1 | . . . . . . . . 1 . . . Total Hacks 103 | . 10 . 16 3 32 9 . 8 . . 25 Successful 66 | . 3 . 13 2 15 4 . 4 . . 25 Failed 36 | . 7 . 3 1 16 5 . 4 . . . Catastrophic 2 | . 1 . . . . . . 1 . . . Database Lockouts 1 | . . . . . 1 . . . . . . Manual 39 | . 5 . 3 2 18 7 . 4 . . . Terminals 47 | . 6 . 6 2 25 4 . 4 . . . Fabricators . | . . . . . . . . . . . . Repair Stations 7 | . 3 . 2 . 2 . . . . . . Recycling Units 11 | . 1 . 1 . 1 5 . 3 . . . Scanalyzers 11 | . . . 7 . 4 . . . . . . Garrison Access 1 | . . . . . . . . 1 . . . Terminal Hacks 38 | . 1 . 2 1 6 . . 3 . . 25 Record 11 | . . . . . . . . . . . 11 Part Schematic 6 | . . . . . . . . . . . 6 Robot Schematic 5 | . . . . . . . . . . . 5 Robot Analysis 2 | . 1 . . . 1 . . . . . . Prototype ID Bank 6 | . . . 1 . 1 . . 1 . . 3 Open Door 1 | . . . . 1 . . . . . . . Branch Access Points 1 | . . . . . 1 . . . . . . Alert Level 1 | . . . . . 1 . . . . . . Locate Traps 1 | . . . . . . . . 1 . . . Hauler Manifests 1 | . . . . . 1 . . . . . . Zone Layout 3 | . . . 1 . 1 . . 1 . . . Fabricator Hacks . | . . . . . . . . . . . . Repair Station Hacks 5 | . 1 . 2 . 2 . . . . . . Scan Component 3 | . 1 . 1 . 1 . . . . . . Repair 2 | . . . 1 . 1 . . . . . . Recycling Unit Hacks . | . . . . . . . . . . . . Scanalyzer 7 | . . . 6 . 1 . . . . . . Insert Component 4 | . . . 3 . 1 . . . . . . Analyze 3 | . . . 3 . . . . . . . . Garrison Access Hacks . | . . . . . . . . . . . . Unauthorized Hacks 16 | . 1 . 3 1 6 4 . 1 . . . Terminals 9 | . . . 2 1 5 1 . . . . . Track 4 | . . . 2 . 2 . . . . . . Assimilate 2 | . . . . 1 . 1 . . . . . Botnet 3 | . . . . . 3 . . . . . . Fabricators . | . . . . . . . . . . . . Repair Stations . | . . . . . . . . . . . . Recycling Units 6 | . 1 . 1 . 1 3 . . . . . Reject 1 | . . . . . . 1 . . . . . Recyclers 1 | . . . . . . 1 . . . . . Mask 2 | . . . . . 1 1 . . . . . Tunnel 2 | . 1 . 1 . . . . . . . . Scanalyzers . | . . . . . . . . . . . . Garrison Access 1 | . . . . . . . . 1 . . . Jam 1 | . . . . . . . . 1 . . . Data Cores Recovered . | . . . . . . . . . . . . Used . | . . . . . . . . . . . . Hacking Detections 20 | . 3 . 4 1 7 3 . 2 . . . Full Trace Events 4 | . 2 . . . 1 1 . . . . . Feedback Events . | . . . . . . . . . . . . Feedback Blocked . | . . . . . . . . . . . . Robot Schematics Acquired 5 | . . . . . . . . . . . 5 Robots Built . | . . . . . . . . . . . . Matter . | . . . . . . . . . . . . Time . | . . . . . . . . . . . . Total Robot Build Rating . | . . . . . . . . . . . . Part Schematics Acquired 9 | . . . 3 . . . . . . . 6 Parts Built . | . . . . . . . . . . . . Matter . | . . . . . . . . . . . . Time . | . . . . . . . . . . . . Total Part Build Rating . | . . . . . . . . . . . . Parts Repaired 2 | . . . 1 . 1 . . . . . . Time 52 | . . . 26 . 26 . . . . . . Parts Recycled . | . . . . . . . . . . . . Recycled Matter . | . . . . . . . . . . . . Retrieved Matter . | . . . . . . . . . . . . Retrieved Components . | . . . . . . . . . . . . Parts Scanalyzed 4 | . . . 3 . 1 . . . . . . Part Schematics Acquired 3 | . . . 3 . . . . . . . . Parts Damaged . | . . . . . . . . . . . . Bothacking | -11 -10 -10 -9 -9 -8 -7 -7 -7 -7 -7 -7 ------------ Run | Scr Mat Min Mat Min Mat Fac Was Fac Low Low Dat Used RIF Installer . | . . . . . . . . . . . . Robots Hacked . | . . . . . . . . . . . . Non-combat . | . . . . . . . . . . . . Combat . | . . . . . . . . . . . . Robot Hacks Applied . | . . . . . . . . . . . . Relay Couplers Released . | . . . . . . . . . . . . Robots Rewired . | . . . . . . . . . . . . Allies Hacked . | . . . . . . . . . . . . Hacks Repelled . | . . . . . . . . . . . . Allies | -11 -10 -10 -9 -9 -8 -7 -7 -7 -7 -7 -7 -------- Run | Scr Mat Min Mat Min Mat Fac Was Fac Low Low Dat Total Allies 4 | . . . . 3 . 1 . . . . . Largest Group 3 | . . . . 3 3 1 . . . . . Highest-Rated Group 40 | . . . . 40 40 10 . . . . . Highest-Rated Ally 16 | . . . . 16 16 10 . . . . . Total Orders . | . . . . . . . . . . . . Ally Attacks 29 | . . . . 10 19 . . . . . . Total Damage 303 | . . . . 107 196 . . . . . . Kills 4 | . . . . 1 3 . . . . . . Allies Corrupted . | . . . . . . . . . . . . Allies Melted . | . . . . . . . . . . . . Intel | -11 -10 -10 -9 -9 -8 -7 -7 -7 -7 -7 -7 ------- Run | Scr Mat Min Mat Min Mat Fac Was Fac Low Low Dat Robot Analysis Total 117 | . 1 . . . 1 . . . . . 115 Derelict Logs Recovered 7 | . . 3 . 1 . . . . 2 1 . Drone Launches . | . . . . . . . . . . . . Drone Recoveries . | . . . . . . . . . . . . Exploration | -11 -10 -10 -9 -9 -8 -7 -7 -7 -7 -7 -7 ------------- Run | Scr Mat Min Mat Min Mat Fac Was Fac Low Low Dat Turns Passed 12799 | 32 651 898 1466 1453 1649 1836 192 626 1909 1738 349 Spaces Moved 5904 | 20 367 647 566 734 705 752 85 252 841 832 103 Core . | . . . . . . . . . . . . Treads 2198 | . 8 13 429 207 277 244 17 147 790 66 . Legs 70 | 20 50 . . . . . . . . . . Wheels 3636 | . 309 634 137 527 428 508 68 105 51 766 103 Hover . | . . . . . . . . . . . . Flight . | . . . . . . . . . . . . Fastest Speed 100 | 120 100 120 120 140 130 130 140 140 140 140 140 Average Speed 172 | 120 112 121 183 162 174 175 157 191 219 190 143 Slowest Speed 330 | 120 160 180 220 220 240 260 225 330 225 225 190 Overloaded Moves . | . . . . . . . . . . . . Propulsion Burnouts . | . . . . . . . . . . . . Robots Hopped . | . . . . . . . . . . . . Cave-ins Triggered 1 | . . . . . . . . . . . 1 Exploration Rate (%) 61 | 3 59 94 44 98 63 19 83 9 96 92 78 Regions Visited 11 Branch Regions 5 Pre-discovered Areas 33 | . 1 1 1 . . . . . . . 30 Known Exits Taken 4 | . . . . . 1 . . 1 1 1 . Unknown Exits Taken 5 | 1 1 1 1 1 . . . . . . . Scrap Searched 6 | . . 1 . 2 . . . . 3 . . Spaces Dug 16 | . . . . . 2 8 . . . . 6 Terrain Destroyed 176 | . 14 6 6 17 22 16 . 89 . . 6 Melee 10 | . . . . . 2 2 . . . . 6 Projectile 2 | . . . . 2 . . . . . . . AOE 164 | . 14 6 6 15 20 14 . 89 . . . Terrain Rammed . | . . . . . . . . . . . . Walls Destroyed . | . . . . . . . . . . . . Machines Disabled . | . . . . . . . . . . . . Actions | -11 -10 -10 -9 -9 -8 -7 -7 -7 -7 -7 -7 --------- Run | Scr Mat Min Mat Min Mat Fac Was Fac Low Low Dat Total 7613 | 24 513 703 829 863 987 1129 119 333 866 969 278 Wait 557 | . 62 3 52 29 69 63 . 18 . 122 139 Move 5895 | 19 367 646 565 733 704 752 84 251 840 831 103 Hop . | . . . . . . . . . . . . Pick Up 187 | 2 11 4 45 8 39 61 4 5 4 1 3 Fast Attach 44 | 1 2 3 12 1 10 8 . 5 1 1 . Attach 59 | . 2 . 20 4 7 15 1 2 2 . 6 Detach 5 | . . . . . 1 3 . 1 . . . Swap 179 | . 18 14 20 18 30 50 3 14 4 6 2 Drop 159 | . 3 5 16 6 41 57 14 11 1 2 3 Fire 445 | 2 48 28 91 64 69 77 13 21 14 6 12 Melee 26 | . . . 8 . 6 2 . . . . 10 Ram . | . . . . . . . . . . . . Kick . | . . . . . . . . . . . . Crush 5 | . . . . . . . . 5 . . . Escape Stasis . | . . . . . . . . . . . . Rewire . | . . . . . . . . . . . . Trap 52 | . . . . . 11 41 . . . . . Miscellaneous . | . . . . . . . . . . . . Route ------- -11/Scrapyard -10/Materials (discovered 2 exits: *Mat / [*Min]) -10/Mines (discovered 2 exits: *Mat x2) -9/Materials (discovered 2 exits: *Min / *Sto) -9/Mines (discovered 2 exits: *Mat x2) -8/Materials (discovered 3 exits: *Fac x3) -7/Factory -7/Waste -7/Factory -7/Lower Caves -7/Lower Caves (discovered 2 exits: *Fac / *Dat) -7/Data Miner (discovered 1 exit: [*Pro]) History --------- Turn | Location | Event 7 | -11/Scrapyard | Discovered new exit (range 3) 33 | -11/Scrapyard | Entered Materials 264 | -10/Materials | Discovered new exit (range 6) 306 | -10/Materials | Build established: Mutant 474 | -10/Materials | Discovered new exit (range 16) 684 | -10/Materials | Entered Mines 854 | -10/Mines | Core integrity fell below 50% 910 | -10/Mines | Discovered new exit (range 8) 911 | -10/Mines | Learned Materials garrison access intel 949 | -10/Mines | Build established: Hauler-Mutant 1142 | -10/Mines | Discovered new exit (range 8) 1162 | -10/Mines | Learned location of Recycling (-9) 1190 | -10/Mines | A weapon hastily lodged in a ceiling crevice suddenly fell to the ground 1582 | -10/Mines | Entered Materials 1582 | -9/Materials | Evolved 2 slots: Utility x2 1583 | -9/Materials | Identified exit to Storage 2148 | -9/Materials | Build established: Scavenger-Mutant 2418 | -9/Materials | Destroyed 8 combat bots 2420 | -9/Materials | Lost 4 parts (1p1u2w) 2481 | -9/Materials | Repaired Com. Wheel 2647 | -9/Materials | Build established: Hauler-Mutant 3030 | -9/Materials | Discovered new exit (range 9) 3048 | -9/Materials | Entered Mines 3353 | -9/Mines | Excavation squad dispatched 3353 | -9/Mines | A large section of the Mines collapsed 3603 | -9/Mines | Excavation squad dispatched 3605 | -9/Mines | Core integrity fell below 50% 3651 | -9/Mines | Destroyed 7 combat bots 3656 | -9/Mines | Discovered new exit (range 6) 3692 | -9/Mines | Met a Derelict who couldn't figure out how to use a Trap Extractor 4038 | -9/Mines | Assisted by bots powering up and referring to "LRC-V3" 4056 | -9/Mines | Discovered new exit (range 8) 4501 | -9/Mines | Entered Materials 4501 | -8/Materials | Accompanied by 3 allies 4501 | -8/Materials | Evolved 2 slots: Utility x2 4502 | -8/Materials | Identified exit to Factory 4503 | -8/Materials | Loaded intel: 1 garrison access location 4564 | -8/Materials | Garrison activated, responded to threat 4644 | -8/Materials | Repaired Lgt. Treads 4979 | -8/Materials | Central database locked down 5230 | -8/Materials | Discovered exit to Factory (range 12) 5584 | -8/Materials | Discovered exit to Factory (range 16) 6150 | -8/Materials | Entered Factory 6150 | -7/Factory | Evolved 2 slots: Weapon x2 6439 | -7/Factory | Garrison activated, responded to threat 6587 | -7/Factory | Lost 5 parts (1n4w) 6826 | -7/Factory | Core integrity fell below 50% 6861 | -7/Factory | Destroyed 7 combat bots 7200 | -7/Factory | Build established: Hauler-Tank 7476 | -7/Factory | Discovered new exit (range 10) 7530 | -7/Factory | Garrison activated, responded to threat 7986 | -7/Factory | Sucked down chute 7986 | -7/Factory | Entered Waste 8001 | -7/Waste | EMP discharged 8019 | -7/Waste | Spotted C-40 Crusher 8038 | -7/Waste | Destroyed C-40 Crusher 8047 | -7/Waste | Spotted C-40 Crusher 8049 | -7/Waste | Spotted C-40 Crusher 8049 | -7/Waste | Spotted C-40 Crusher 8054 | -7/Waste | Found Damper Plating 8065 | -7/Waste | Spotted C-40 Crusher 8101 | -7/Waste | EMP discharged 8101 | -7/Waste | System corruption reached 10% 8136 | -7/Waste | Discovered new exit (range 16) 8178 | -7/Waste | Entered Factory 8769 | -7/Factory | Discovered new exit (range 6) 8788 | -7/Factory | Identified exit to Lower Caves 8804 | -7/Factory | Entered Lower Caves 8845 | -7/Lower Caves | Spotted B-75 Beast 8897 | -7/Lower Caves | Destroyed B-75 Beast 9249 | -7/Lower Caves | Build established: Hauler-Skirmisher 9414 | -7/Lower Caves | Learned Factory emergency access door positions 9700 | -7/Lower Caves | Learned location of 1 exit from Factory 10531 | -7/Lower Caves | Discovered new exit (range 9) 10551 | -7/Lower Caves | Identified exit to Lower Caves 10713 | -7/Lower Caves | Entered another Lower Caves area 11183 | -7/Lower Caves | Spotted B-75 Beast 11417 | -7/Lower Caves | Discovered new exit (range 7) 11424 | -7/Lower Caves | Identified exit to Factory 12265 | -7/Lower Caves | Discovered new exit (range 13) 12450 | -7/Lower Caves | Identified exit to Data Miner 12451 | -7/Lower Caves | Entered Data Miner 12451 | -7/Data Miner | Discovered new exit (range 6) 12621 | -7/Data Miner | Met Data Miner 12645 | -7/Data Miner | Learned location of Section 7 (-2) 12645 | -7/Data Miner | Acquired the access code to Warlord's prototype stash 12670 | -7/Data Miner | Received God Mode back door access code from Data Miner 12694 | -7/Data Miner | Interfaced with the Data Conduit 12758 | -7/Data Miner | Crushed by falling debris 12774 | -7/Data Miner | Build established: Hauler-Mutant 12793 | -7/Data Miner | Core integrity fell below 20% 12800 | -7/Data Miner | Destroyed by Enhanced Grunt with Neutron Cannon Last Messages --------------- 12698_ Acquired Greatsword. 12712_ ,%Q|6